fUST/lending_fUST_20250726
["ID","MTS","AMOUNT","RATE_DAILY","PERIOD"]
[375099634,1753527045430,-3000.0,0.0002107,2]
[375099635,1753527045440,-500.0,0.00021073,2]
[375099636,1753527045449,-500.0,0.00021073,2]
[375099637,1753527045459,-500.0,0.00021073,2]
[375099638,1753527045468,-500.48698167,0.00021073,2]
[375099639,1753527045478,-500.0,0.00021073,2]
[375099640,1753527045488,-158.37060469,0.00021073,2]
[375099641,1753527045497,-500.0,0.00021073,2]
[375099642,1753527045507,-160.3790415,0.00021073,2]
[375099643,1753527045517,-280.37953901,0.00021073,2]
[375099644,1753527045527,-158.37201792,0.00021073,2]
[375099645,1753527045537,-500.0,0.00021073,2]
[375099646,1753527045547,-158.37178087,0.00021073,2]
[375099647,1753527045556,-500.0,0.00021073,2]
[375099648,1753527045566,-500.0,0.00021073,2]
[375099649,1753527045576,-233.46432429,0.00021073,2]
[375099650,1753527045585,-500.0,0.00021073,2]
[375099651,1753527045595,-152.35185347,0.00021073,2]
[375099652,1753527045604,-158.36715686,0.00021073,2]
[375099653,1753527045614,-500.0,0.00021073,2]
[375099654,1753527045623,-337.027167,0.00021073,2]
[375099655,1753527045633,-500.0,0.00021073,2]
[375099656,1753527045643,-500.0,0.00021073,2]
[375099657,1753527045652,-164.24585049,0.00021073,2]
[375099658,1753527045662,-500.0,0.00021073,2]
[375099659,1753527045671,-274.68370452,0.00021073,2]
[375099660,1753527045682,-348.09548688,0.00021073,2]
[375099661,1753527045694,-500.6941878,0.00021073,2]
[375099662,1753527045703,-500.0,0.00021073,2]
[375099663,1753527045713,-500.0,0.00021073,2]
[375099664,1753527045724,-500.0,0.00021073,2]
[375099665,1753527045733,-500.0,0.00021073,2]
[375099666,1753527045742,-500.0,0.00021073,2]
[375099667,1753527045752,-500.0,0.00021073,2]
[375099668,1753527045761,-500.0,0.00021073,2]
[375099669,1753527045771,-500.0,0.00021073,2]
[375099670,1753527045781,-504.76733656,0.00021073,2]
[375099671,1753527045791,-500.0,0.00021073,2]
[375099672,1753527045801,-501.02442501,0.00021073,2]
[375099673,1753527045810,-500.0,0.00021073,2]
[375099674,1753527045819,-500.0,0.00021073,2]
[375099675,1753527045830,-500.0,0.00021073,2]
[375099676,1753527045840,-500.0,0.00021073,2]
[375099677,1753527045850,-500.0,0.00021073,2]
[375099678,1753527045861,-500.0,0.00021073,2]
[375099679,1753527045872,-500.0,0.00021073,2]
[375099680,1753527045882,-500.0,0.00021073,2]
[375099681,1753527045892,-500.0,0.00021073,2]
[375099682,1753527045902,-500.0,0.00021073,2]
[375099683,1753527045912,-500.0,0.00021073,2]
[375099684,1753527045922,-500.0,0.00021073,2]
[375099685,1753527045932,-500.0,0.00021073,2]
[375099686,1753527045942,-500.0,0.00021073,2]
[375099687,1753527045952,-500.0,0.00021073,2]
[375099688,1753527045961,-500.0,0.00021073,2]
[375099689,1753527045973,-151.0,0.00021073,2]
[375099690,1753527045983,-151.0,0.00021073,2]
[375099691,1753527045994,-520.0,0.00021078,2]
[375099692,1753527046003,-3000.0,0.0002108,2]
[375099693,1753527046013,-3000.0,0.0002109,2]
[375099694,1753527046023,-460.0,0.00021095,2]
[375099695,1753527046032,-460.0,0.00021095,2]
[375099696,1753527046042,-460.0,0.00021095,2]
[375099697,1753527046052,-460.0,0.00021095,2]
[375099698,1753527046070,-467.23,0.00021095,2]
[375099699,1753527046089,-531.37,0.00021095,2]
[375099700,1753527046104,-460.0,0.00021095,2]
[375099701,1753527046121,-460.0,0.00021095,2]
[375099703,1753527046139,-460.0,0.00021095,2]
[375099705,1753527046156,-460.0,0.00021095,2]
[375099706,1753527046175,-797.93,0.00021095,2]
[375099709,1753527046189,-684.19,0.00021095,2]
[375099710,1753527046205,-151.0,0.00021095,2]
[375099711,1753527046224,-460.0,0.00021095,2]
[375099712,1753527046238,-151.0,0.00021095,2]
[375099715,1753527046251,-579.61,0.00021095,2]
[375099717,1753527046266,-151.0,0.00021095,2]
[375099719,1753527046283,-460.0,0.00021095,2]
[375099720,1753527046300,-686.84,0.00021095,2]
[375099721,1753527046318,-151.0,0.00021095,2]
[375099722,1753527046331,-151.0,0.00021095,2]
[375099723,1753527046351,-460.0,0.00021095,2]
[375099726,1753527046376,-460.0,0.00021095,2]
[375099728,1753527046390,-460.0,0.00021095,2]
[375099729,1753527046403,-151.0,0.00021095,2]
[375099730,1753527046419,-2511.02,0.00021095,2]
[375099731,1753527046431,-460.0,0.00021095,2]
[375099732,1753527046445,-151.0,0.00021095,2]
[375099733,1753527046458,-151.0,0.00021095,2]
[375099735,1753527046471,-460.0,0.00021095,2]
[375099736,1753527046485,-600.72,0.00021095,2]
[375099737,1753527046498,-151.0,0.00021095,2]
[375099738,1753527046512,-460.0,0.00021095,2]
[375099739,1753527046526,-460.0,0.00021095,2]
[375099740,1753527046539,-460.0,0.00021095,2]
[375099741,1753527046553,-2794.0,0.00021095,2]
[375099742,1753527046566,-4094.52,0.00021095,2]
[375099744,1753527046579,-460.0,0.00021095,2]
[375099746,1753527046591,-2323.02,0.00021095,2]
[375099747,1753527046604,-669.94,0.00021095,2]
[375099748,1753527046618,-1698.835608,0.00021095,2]
[375099749,1753527046631,-807.89,0.00021095,2]
[375099750,1753527046644,-460.0,0.00021095,2]
[375099751,1753527046657,-1698.835608,0.00021095,2]
[375099752,1753527046669,-3242.85,0.00021095,2]
[375099753,1753527046683,-507.95,0.00021095,2]
[375099754,1753527046696,-827.3,0.00021095,2]
[375099755,1753527046709,-177.084194,0.00021095,2]
[375099756,1753527046722,-177.084194,0.00021095,2]
[375099757,1753527046735,-4577.04669833,0.00021095,2]
[375099758,1753527047314,-460.0,0.00019178,2]
[375099759,1753527047324,-384.5497084,0.00019178,2]
[375099760,1753527047337,-75.4502916,0.00019178,2]
[375099761,1753527047348,-460.0,0.00019178,2]
[375099762,1753527047360,-460.0,0.00019178,2]
[375099763,1753527047369,-460.0,0.00019178,2]
[375099764,1753527047380,-460.0,0.00019452,2]
[375099765,1753527047389,-460.0,0.00019452,2]
[375099766,1753527047399,-460.0,0.00019452,2]
[375099767,1753527047408,-501.04,0.00019726,2]
[375099768,1753527047418,-523.82,0.00020547,2]
[375099769,1753527047428,-904.24,0.00020547,2]
[375099770,1753527047438,-523.82,0.00020821,2]
[375099771,1753527047448,-904.24,0.00020821,2]
[375099772,1753527047457,-1297.51330167,0.00021095,2]
[375099773,1753527047466,-460.0,0.00021095,2]
[375099774,1753527047475,-451.77443616,0.00021095,2]
[375099775,1753527047485,-588.82,0.00021095,2]
[375099776,1753527047494,-596.14,0.00021095,2]
[375099777,1753527047503,-724.98,0.00021095,2]
[375099778,1753527047513,-787.86,0.00021095,2]
[375099779,1753527047522,-1402.46,0.00021095,2]
[375099780,1753527047532,-151.0,0.00021095,2]
[375099781,1753527047542,-3413.29,0.00021095,2]
[375099782,1753527047551,-1667.4,0.00021095,2]
[375099783,1753527047561,-460.0,0.00021095,2]
[375099784,1753527047570,-608.757826,0.00021095,2]
[375099785,1753527047579,-608.757826,0.00021095,2]
[375099786,1753527047589,-151.0,0.00021095,2]
[375099787,1753527047598,-460.0,0.00021095,2]
[375099788,1753527047607,-2017.53,0.00021095,2]
[375099789,1753527047617,-460.0,0.00021095,2]
[375099790,1753527047626,-727.62,0.00021095,2]
[375099791,1753527047636,-471.24,0.00021095,2]
[375099792,1753527047645,-2856.97,0.00021095,2]
[375099793,1753527047655,-2520.78,0.00021095,2]
[375099794,1753527047664,-1925.48,0.00021095,2]
[375099795,1753527047674,-470.9,0.00021095,2]
[375099796,1753527047683,-460.0,0.00021095,2]
[375099797,1753527047692,-460.0,0.00021095,2]
[375099798,1753527047701,-1046.86,0.00021095,2]
[375099799,1753527047710,-203.73362883,0.00021095,2]
[375099800,1753527047724,-366.93637117,0.00021095,2]
[375099801,1753527047733,-460.0,0.00021095,2]
[375099802,1753527047743,-859.5,0.00021095,2]
[375099803,1753527047753,-2649.8,0.00021095,2]
[375099804,1753527047762,-540.45,0.00021095,2]
[375099805,1753527047772,-772.34,0.00021095,2]
[375099806,1753527047782,-1753.33,0.00021095,2]
[375099807,1753527047792,-460.0,0.00021095,2]
[375099808,1753527047802,-8471.01,0.00021095,2]
[375099809,1753527047812,-460.0,0.00021095,2]
[375099810,1753527047821,-460.0,0.00021095,2]
[375099811,1753527047831,-814.3,0.00021095,2]
[375099812,1753527047841,-843.6,0.00021095,2]
[375099813,1753527047851,-676.24,0.00021095,2]
[375099814,1753527047861,-470.45930808,0.00021095,2]
[375099815,1753527047870,-1443.02,0.00021095,2]
[375099816,1753527047880,-1286.08,0.00021095,2]
[375099817,1753527047890,-726.98,0.00021095,2]
[375099818,1753527047899,-523.82,0.00021095,2]
[375099819,1753527047908,-904.24,0.00021095,2]
[375099820,1753527047918,-151.0,0.00021096,2]
[375099821,1753527047927,-151.0,0.00021096,2]
[375099822,1753527047937,-151.0,0.00021096,2]
[375099823,1753527047947,-151.0,0.00021096,2]
[375099824,1753527047956,-555.0,0.00021096,2]
[375099825,1753527047966,-151.0,0.00021096,2]
[375099826,1753527047976,-151.0,0.00021096,2]
[375099827,1753527047986,-151.28167398,0.00021096,2]
[375099828,1753527047996,-151.00525167,0.00021096,2]
[375099829,1753527048006,-151.0,0.00021096,2]
[375099830,1753527048016,-300.48934009,0.00021096,2]
[375099831,1753527048025,-151.0,0.00021096,2]
[375099832,1753527048036,-681.0,0.00021096,2]
[375099833,1753527048046,-151.0,0.00021096,2]
[375099834,1753527048056,-151.92336044,0.00021096,2]
[375099835,1753527048065,-151.0,0.00021096,2]
[375099836,1753527048075,-151.0,0.00021096,2]
[375099837,1753527048085,-151.0,0.00021096,2]
[375099838,1753527048095,-151.0,0.00021096,2]
[375099839,1753527048105,-151.0,0.00021096,2]
[375099840,1753527048115,-151.0,0.00021096,2]
[375099841,1753527048125,-151.0,0.00021096,2]
[375099842,1753527048135,-151.0,0.00021096,2]
[375099843,1753527048144,-151.0,0.00021096,2]
[375099844,1753527048154,-151.0,0.00021096,2]
[375099845,1753527048164,-151.0,0.00021096,2]
[375099846,1753527048173,-3000.0,0.000211,2]
[375099847,1753527048183,-3000.0,0.0002111,2]
[375099848,1753527048192,-151.0,0.0002111,2]
[375099849,1753527048202,-151.0,0.0002111,2]
[375099850,1753527048212,-151.0,0.0002111,2]
[375099851,1753527048221,-3000.0,0.0002112,2]
[375099852,1753527048231,-3000.0,0.0002113,2]
[375099853,1753527048240,-151.0,0.0002113,2]
[375099854,1753527048250,-152.283671,0.0002113,2]
[375099855,1753527048259,-680.0,0.00021134,2]
[375099856,1753527048270,-677.0,0.00021134,2]
[375099857,1753527048279,-3000.0,0.0002114,2]
[375099858,1753527048290,-3000.0,0.0002115,2]
[375099859,1753527048300,-151.0,0.0002115,2]
[375099860,1753527048310,-3000.0,0.0002116,2]
[375099861,1753527048320,-151.0,0.0002116,2]
[375099862,1753527048331,-3000.0,0.0002117,2]
[375099863,1753527048344,-3000.0,0.0002118,2]
[375099864,1753527048353,-3000.0,0.0002119,2]
[375099865,1753527048362,-3000.0,0.000212,2]
[375099866,1753527048372,-1058.51,0.000212,2]
[375099867,1753527048383,-3000.0,0.0002121,2]
[375099868,1753527048393,-3000.0,0.0002122,2]
[375099869,1753527048403,-151.0,0.0002122,2]
[375099870,1753527048413,-151.0,0.0002122,2]
[375099871,1753527048422,-3000.0,0.0002123,2]
[375099872,1753527048432,-295.6,0.00021238,4]
[375099873,1753527048441,-3000.0,0.0002124,2]
[375099874,1753527048451,-677.0,0.00021249,2]
[375099875,1753527048461,-3000.0,0.0002125,2]
[375099876,1753527048471,-604.332,0.00021254,2]
[375099877,1753527048480,-677.0,0.00021257,2]
[375099878,1753527048490,-3000.0,0.0002126,2]
[375099879,1753527048500,-2439.27653831,0.0002127,2]
[375099880,1753527048593,-560.72346169,0.0002127,2]
[375099881,1753527048603,-3000.0,0.0002128,2]
[375099882,1753527048613,-926.10529879,0.0002129,2]
[375099883,1753527048626,-724.75138901,0.0002129,2]
[375099884,1753527048642,-394.60772225,0.00019452,2]
[375099885,1753527048662,-65.39227775,0.00019452,2]
[375099886,1753527048671,-999.60959949,0.0002129,2]
[375099887,1753527048815,-4704.49058585,0.0001898,2]
[375099888,1753527048825,-460.0,0.00019178,2]
[375099889,1753527048835,-460.0,0.00019452,2]
[375099890,1753527048844,-460.0,0.00019726,2]
[375099891,1753527048855,-349.53371271,0.0002129,2]
[375099892,1753527048865,-3000.0,0.000213,2]
[375099893,1753527048875,-677.0,0.00021307,2]
[375099894,1753527048885,-3000.0,0.0002131,2]
[375099895,1753527048895,-3000.0,0.0002132,2]
[375099896,1753527048905,-3000.0,0.0002133,2]
[375099897,1753527048915,-520.0,0.00021339,2]
[375099898,1753527048925,-3000.0,0.0002134,2]
[375099899,1753527048935,-3000.0,0.0002135,2]
[375099900,1753527048946,-3000.0,0.0002136,2]
[375099901,1753527048956,-2500.0,0.00021364,2]
[375099902,1753527048966,-659.96274811,0.00021364,2]
[375099903,1753527048976,-460.0,0.00021369,2]
[375099904,1753527048986,-460.0,0.00021369,2]
[375099905,1753527048995,-467.23,0.00021369,2]
[375099906,1753527049006,-460.0,0.00021369,2]
[375099907,1753527049016,-460.0,0.00021369,2]
[375099908,1753527049026,-402.82809799,0.00021369,2]
[375099909,1753527049035,-460.0,0.00021369,2]
[375099910,1753527049045,-797.93,0.00021369,2]
[375099911,1753527049056,-684.19,0.00021369,2]
[375099912,1753527049066,-151.0,0.00021369,2]
[375099913,1753527049077,-153.035382,0.00021369,2]
[375099914,1753527049087,-460.0,0.00021369,2]
[375099915,1753527049097,-151.0,0.00021369,2]
[375099916,1753527049107,-579.61,0.00021369,2]
[375099917,1753527049117,-151.0,0.00021369,2]
[375099918,1753527049127,-460.0,0.00021369,2]
[375099919,1753527049137,-686.84,0.00021369,2]
[375099920,1753527049147,-151.0,0.00021369,2]
[375099921,1753527049158,-151.0,0.00021369,2]
[375099922,1753527049168,-460.0,0.00021369,2]
[375099923,1753527049177,-460.0,0.00021369,2]
[375099924,1753527049186,-460.0,0.00021369,2]
[375099925,1753527049294,-151.0,0.00021369,2]
[375099926,1753527049308,-2511.02,0.00021369,2]
[375099927,1753527049318,-460.0,0.00021369,2]
[375099928,1753527049328,-151.0,0.00021369,2]
[375099929,1753527049339,-460.0,0.00021369,2]
[375099930,1753527049348,-600.72,0.00021369,2]
[375099931,1753527049358,-151.0,0.00021369,2]
[375099932,1753527049367,-460.0,0.00021369,2]
[375099933,1753527049377,-460.0,0.00021369,2]
[375099934,1753527049387,-460.0,0.00021369,2]
[375099935,1753527049396,-2794.0,0.00021369,2]
[375099936,1753527049406,-4094.52,0.00021369,2]
[375099937,1753527049415,-460.0,0.00021369,2]
[375099938,1753527049425,-2323.02,0.00021369,2]
[375099939,1753527049435,-669.94,0.00021369,2]
[375099940,1753527049445,-1698.835608,0.00021369,2]
[375099941,1753527049454,-807.89,0.00021369,2]
[375099942,1753527049463,-460.0,0.00021369,2]
[375099943,1753527049473,-1698.835608,0.00021369,2]
[375099944,1753527049482,-3242.85,0.00021369,2]
[375099945,1753527049490,-507.95,0.00021369,2]
[375099946,1753527049499,-827.3,0.00021369,2]
[375099947,1753527049509,-177.084194,0.00021369,2]
[375099948,1753527049519,-177.084194,0.00021369,2]
[375099949,1753527049528,-5874.56,0.00021369,2]
[375099950,1753527049537,-526.33782163,0.00021369,2]
[375099951,1753527049547,-588.82,0.00021369,2]
[375099952,1753527049556,-596.14,0.00021369,2]
[375099953,1753527049566,-724.98,0.00021369,2]
[375099954,1753527049576,-787.86,0.00021369,2]
[375099955,1753527049589,-1402.46,0.00021369,2]
[375099956,1753527049599,-151.0,0.00021369,2]
[375099957,1753527049609,-1667.4,0.00021369,2]
[375099958,1753527049618,-3413.29,0.00021369,2]
[375099959,1753527049628,-460.0,0.00021369,2]
[375099960,1753527049637,-608.757826,0.00021369,2]
[375099961,1753527049647,-608.757826,0.00021369,2]
[375099962,1753527049656,-151.0,0.00021369,2]
[375099963,1753527049665,-460.0,0.00021369,2]
[375099964,1753527049675,-2017.53,0.00021369,2]
[375099965,1753527049684,-460.0,0.00021369,2]
[375099966,1753527049693,-727.62,0.00021369,2]
[375099967,1753527049704,-471.24,0.00021369,2]
[375099968,1753527049713,-2856.97,0.00021369,2]
[375099969,1753527049723,-2520.78,0.00021369,2]
[375099970,1753527049732,-1925.48,0.00021369,2]
[375099971,1753527049742,-470.9,0.00021369,2]
[375099972,1753527049751,-460.0,0.00021369,2]
[375099973,1753527049761,-460.0,0.00021369,2]
[375099974,1753527049771,-1046.86,0.00021369,2]
[375099975,1753527049780,-570.67,0.00021369,2]
[375099976,1753527049789,-460.0,0.00021369,2]
[375099977,1753527049798,-859.5,0.00021369,2]
[375099978,1753527049808,-2649.8,0.00021369,2]
[375099979,1753527049817,-540.45,0.00021369,2]
[375099980,1753527049826,-772.34,0.00021369,2]
[375099981,1753527049836,-151.0,0.00021369,2]
[375099982,1753527049845,-151.0,0.00021369,2]
[375099983,1753527049855,-1753.33,0.00021369,2]
[375099984,1753527049865,-460.0,0.00021369,2]
[375099985,1753527049874,-8471.01,0.00021369,2]
[375099986,1753527049884,-151.0,0.00021369,2]
[375099987,1753527049894,-308.58935951,0.00021369,2]
[375099988,1753527049903,-548.98871368,0.00021369,2]
[375099989,1753527049913,-814.3,0.00021369,2]
[375099990,1753527049923,-151.0,0.00021369,2]
[375099991,1753527049933,-843.6,0.00021369,2]
[375099992,1753527049943,-676.24,0.00021369,2]
[375099993,1753527049955,-1443.02,0.00021369,2]
[375099994,1753527049965,-1286.08,0.00021369,2]
[375099995,1753527049976,-726.98,0.00021369,2]
[375099996,1753527049986,-523.82,0.00021369,2]
[375099997,1753527049996,-904.24,0.00021369,2]
[375099998,1753527050005,-198.0,0.0002137,2]
[375099999,1753527050015,-555.0,0.0002137,2]
[375100000,1753527050024,-151.0,0.0002137,2]
[375100001,1753527050033,-681.0,0.0002137,2]
[375100002,1753527050043,-151.0,0.0002137,2]
[375100003,1753527050052,-151.0,0.0002137,2]
[375100004,1753527050062,-151.0,0.0002137,2]
[375100005,1753527050072,-3000.0,0.0002137,2]
[375100006,1753527050082,-3000.0,0.0002138,2]
[375100007,1753527050092,-3000.0,0.0002139,2]
[375100008,1753527050101,-3000.0,0.000214,2]
[375100009,1753527050111,-150.6,0.00021406,2]
[375100010,1753527050120,-3000.0,0.0002141,2]
[375100011,1753527050131,-3000.0,0.0002142,2]
[375100012,1753527050140,-151.0,0.00021421,2]
[375100013,1753527050149,-3000.0,0.0002143,2]
[375100014,1753527050158,-3325.078256,0.0002144,2]
[375100015,1753527050167,-520.0,0.00021456,2]
[375100016,1753527050176,-12541.66289311,0.000215,2]
[375100017,1753527050185,-256.3695,0.000215,2]
[375100018,1753527050194,-360.0,0.00021534,2]
[375100019,1753527050204,-216.36913112,0.00021598,2]
[375100020,1753527050213,-5078.53249615,0.000216,2]
[375100021,1753527050223,-5440.14136054,0.000216,2]
[375100022,1753527050233,-1000.0,0.00021606,2]
[375100023,1753527050243,-1000.0,0.00021606,2]
[375100024,1753527050253,-501.48761306,0.00021606,2]
[375100025,1753527050262,-1000.0,0.00021606,2]
[375100026,1753527050271,-500.0,0.00021621,2]
[375100027,1753527050280,-1000.0,0.00021621,2]
[375100028,1753527050290,-1008.03497979,0.00021621,2]
[375100029,1753527050299,-500.0,0.00021621,2]
[375100030,1753527050309,-500.0,0.00021621,2]
[375100031,1753527050318,-1000.0,0.00021621,2]
[375100032,1753527050327,-502.04095239,0.00021621,2]
[375100033,1753527050337,-1000.0,0.00021621,2]
[375100034,1753527050349,-1000.0,0.00021621,2]
[375100035,1753527050358,-1000.0,0.00021621,2]
[375100036,1753527050367,-500.0,0.00021621,2]
[375100037,1753527050376,-1000.0,0.00021621,2]
[375100038,1753527050387,-677.00022308,0.00021621,2]
[375100039,1753527050396,-1078.78157681,0.00021621,2]
[375100040,1753527050405,-1000.0,0.00021621,2]
[375100041,1753527050416,-1000.0,0.00021621,2]
[375100042,1753527050425,-1000.0,0.00021621,2]
[375100043,1753527050435,-1006.65538097,0.00021621,2]
[375100044,1753527050444,-1006.31011482,0.00021621,2]
[375100045,1753527050454,-1026.56501023,0.00021621,2]
[375100046,1753527050463,-1000.0,0.00021621,2]
[375100047,1753527050473,-1000.0,0.00021621,2]
[375100048,1753527050482,-1000.0,0.00021621,2]
[375100049,1753527050491,-1000.0,0.00021621,2]
[375100050,1753527050501,-1000.0,0.00021621,2]
[375100051,1753527050511,-732.39567161,0.00021621,2]
[375100052,1753527050525,-267.60432839,0.00021621,2]
[375100053,1753527050534,-177.084194,0.00021621,2]
[375100054,1753527050543,-177.084194,0.00021621,2]
[375100055,1753527050553,-608.757826,0.00021621,2]
[375100056,1753527050563,-608.757826,0.00021621,2]
[375100057,1753527050573,-460.0,0.00021643,2]
[375100058,1753527050583,-370.2434706,0.00021643,2]
[375100059,1753527050592,-460.0,0.00021643,2]
[375100060,1753527050601,-467.23,0.00021643,2]
[375100061,1753527050610,-460.0,0.00021643,2]
[375100062,1753527050620,-460.0,0.00021643,2]
[375100063,1753527050630,-460.0,0.00021643,2]
[375100064,1753527050639,-797.93,0.00021643,2]
[375100065,1753527050649,-684.19,0.00021643,2]
[375100066,1753527050658,-460.0,0.00021643,2]
[375100067,1753527050667,-261.429778,0.00021643,2]
[375100068,1753527050676,-579.61,0.00021643,2]
[375100069,1753527050685,-151.0,0.00021643,2]
[375100070,1753527050694,-460.0,0.00021643,2]
[375100071,1753527050704,-686.84,0.00021643,2]
[375100072,1753527050713,-460.0,0.00021643,2]
[375100073,1753527050723,-460.0,0.00021643,2]
[375100074,1753527050732,-460.0,0.00021643,2]
[375100075,1753527050741,-151.0,0.00021643,2]
[375100076,1753527050751,-2511.02,0.00021643,2]
[375100077,1753527050761,-460.0,0.00021643,2]
[375100078,1753527050770,-151.0,0.00021643,2]
[375100079,1753527050779,-460.0,0.00021643,2]
[375100080,1753527050789,-600.72,0.00021643,2]
[375100081,1753527050798,-151.0,0.00021643,2]
[375100082,1753527050808,-460.0,0.00021643,2]
[375100083,1753527050817,-207.57933611,0.00021643,2]
[375100084,1753527050827,-460.0,0.00021643,2]
[375100085,1753527050837,-2794.0,0.00021643,2]
[375100086,1753527050847,-468.27475141,0.00021643,2]
[375100087,1753527050856,-4094.52,0.00021643,2]
[375100088,1753527050866,-2323.02,0.00021643,2]
[375100089,1753527050876,-669.94,0.00021643,2]
[375100090,1753527050886,-1698.835608,0.00021643,2]
[375100091,1753527050895,-807.89,0.00021643,2]
[375100092,1753527050904,-460.0,0.00021643,2]
[375100093,1753527050914,-1698.835608,0.00021643,2]
[375100094,1753527050924,-3242.85,0.00021643,2]
[375100095,1753527050933,-507.95,0.00021643,2]
[375100096,1753527050943,-827.3,0.00021643,2]
[375100097,1753527050952,-5874.56,0.00021643,2]
[375100098,1753527050961,-588.82,0.00021643,2]
[375100099,1753527050971,-596.14,0.00021643,2]
[375100100,1753527050981,-724.98,0.00021643,2]
[375100101,1753527050991,-787.86,0.00021643,2]
[375100102,1753527051001,-1402.46,0.00021643,2]
[375100103,1753527051011,-151.0,0.00021643,2]
[375100104,1753527051020,-1667.4,0.00021643,2]
[375100105,1753527051029,-3413.29,0.00021643,2]
[375100106,1753527051040,-460.0,0.00021643,2]
[375100107,1753527051049,-460.0,0.00021643,2]
[375100108,1753527051059,-2017.53,0.00021643,2]
[375100109,1753527051067,-460.0,0.00021643,2]
[375100110,1753527051076,-727.62,0.00021643,2]
[375100111,1753527051085,-471.24,0.00021643,2]
[375100112,1753527051094,-2856.97,0.00021643,2]
[375100113,1753527051103,-2520.78,0.00021643,2]
[375100114,1753527051112,-1925.48,0.00021643,2]
[375100115,1753527051121,-470.9,0.00021643,2]
[375100116,1753527051131,-460.0,0.00021643,2]
[375100117,1753527051140,-213.18214698,0.00021643,2]
[375100118,1753527051148,-1046.86,0.00021643,2]
[375100119,1753527051157,-570.67,0.00021643,2]
[375100120,1753527051166,-460.0,0.00021643,2]
[375100121,1753527051175,-489.37107606,0.00021643,2]
[375100122,1753527051188,-370.12892394,0.00021643,2]
[375100123,1753527051197,-1162.75932353,0.00021643,2]
[375100124,1753527051209,-1487.04067647,0.00021643,2]
[375100125,1753527051220,-77.11833683,0.00021643,2]
[375100126,1753527051290,-460.0,0.00019178,2]
[375100127,1753527051301,-460.0,0.00019178,2]
[375100128,1753527051311,-460.0,0.00019178,2]
[375100129,1753527051320,-177.64,0.0002,2]
[375100130,1753527051330,-463.33166317,0.00021643,2]
[375100131,1753527051341,-772.34,0.00021643,2]
[375100132,1753527051351,-151.0,0.00021643,2]
[375100133,1753527051448,-151.0,0.00021643,2]
[375100134,1753527051459,-1753.33,0.00021643,2]
[375100135,1753527051468,-460.0,0.00021643,2]
[375100136,1753527051478,-8471.01,0.00021643,2]
[375100137,1753527051487,-814.3,0.00021643,2]
[375100138,1753527051497,-151.0,0.00021643,2]
[375100139,1753527051508,-843.6,0.00021643,2]
[375100140,1753527051518,-676.24,0.00021643,2]
[375100141,1753527051528,-1443.02,0.00021643,2]
[375100142,1753527051540,-1286.08,0.00021643,2]
[375100143,1753527051550,-726.98,0.00021643,2]
[375100144,1753527051559,-523.82,0.00021643,2]
[375100145,1753527051568,-904.24,0.00021643,2]
[375100146,1753527051578,-579.0,0.00021644,2]
[375100147,1753527051587,-555.0,0.00021644,2]